Workbook

Sheet RESUMO DO ORÇAMENTO
B2: RELATÓRIO DE RESUMO DO ORÇAMENTO | I2: =YEAR(TODAY()) -> 2019
B3: Nome da empresa
B4: As células cinzas são calculadas para você e geralmente não devem ser alteradas.
B5: Resumo de lucros e perdas | C5: Maio real | D5: Metas de maio | E5: Variação mensal | F5: No ano reais | G5: Metas anuais | H5: Variação anual | I5: Anotações
B6: Receita | C6: R$ 1,200,000.00 | D6: R$ 1,100,000.00 | E6: =C6-D6 -> R$ 100,000.00 | F6: R$ 6,200,000.00 | G6: R$ 6,000,000.00 | H6: =F6-G6 -> R$ 200,000.00 | I6: Ultrapassamos nossa meta de receita de maio em 9%, devido a execução mais forte na região Oeste.
B7: Margem bruta | C7: R$ 150,000.00 | D7: R$ 160,000.00 | E7: =C7-D7 -> -R$ 10,000.00 | F7: R$ 640,000.00 | G7: R$ 750,000.00 | H7: =F7-G7 -> -R$ 110,000.00
B8: Porcentagem de margem bruta | C8: =IF(C6=0,0,C7/C6) -> 12.5% | D8: =IF(D6=0,0,D7/D6) -> 14.5% | E8: =C8-D8 -> -2.0% | F8: =IF(F6=0,0,F7/F6) -> 10.3% | G8: =IF(G6=0,0,G7/G6) -> 12.5% | H8: =F8-G8 -> -2.2%
B9: Vendas de novos produtos | C9: R$ 200,000.00 | D9: R$ 150,000.00 | E9: =C9-D9 -> R$ 50,000.00 | F9: R$ 900,000.00 | G9: R$ 750,000.00 | H9: =F9-G9 -> R$ 150,000.00
B10: Detalhamento de vendas regionais:
B11: Região nordeste | C11: R$ 400,000.00 | D11: R$ 400,000.00 | E11: =C11-D11 -> R$ 0.00 | F11: R$ 2,200,000.00 | G11: R$ 2,000,000.00 | H11: =F11-G11 -> R$ 200,000.00
B12: Região central | C12: R$ 400,000.00 | D12: R$ 400,000.00 | E12: =C12-D12 -> R$ 0.00 | F12: R$ 2,400,000.00 | G12: R$ 2,000,000.00 | H12: =F12-G12 -> R$ 400,000.00
B13: Região oeste | C13: R$ 400,000.00 | D13: R$ 300,000.00 | E13: =C13-D13 -> R$ 100,000.00 | F13: R$ 1,600,000.00 | G13: R$ 2,000,000.00 | H13: =F13-G13 -> -R$ 400,000.00
B14: Despesas e margem:
B15: Despesas SG&A | C15: R$ 100,000.00 | D15: R$ 120,000.00 | E15: =D15-C15 -> R$ 20,000.00 | F15: R$ 500,000.00 | G15: R$ 600,000.00 | H15: =G15-F15 -> R$ 100,000.00
B16: Lucro operacional Pretax (perda) | C16: R$ 50,000.00 | D16: R$ 40,000.00 | E16: =C16-D16 -> R$ 10,000.00 | F16: R$ 140,000.00 | G16: R$ 150,000.00 | H16: =F16-G16 -> -R$ 10,000.00
B17: Margem operacional | C17: =IF(C6=0,0,C16/C6) -> 4% | D17: =IF(D6=0,0,D16/D6) -> 4% | E17: =C17-D17 -> 1% | F17: =IF(F6=0,0,F16/F6) -> 2% | G17: =IF(G6=0,0,G16/G6) -> 3% | H17: =F17-G17 -> -0%
B19: Resumo do balanço | C19: Maio real | D19: Metas de maio | E19: Variação mensal | F19: No ano reais | G19: Metas anuais | H19: Variação anual | I19: Anotações
B20: Fluxo de caixa de término do período | C20: R$ 35,000.00 | D20: R$ 50,000.00 | E20: =C20-D20 -> -R$ 15,000.00 | F20: R$ 35,000.00 | G20: R$ 50,000.00 | H20: =F20-G20 -> -R$ 15,000.00 | I20: O diferencial do fluxo de caixa deveu-se à liquidação financeira da disputa legal com o nome da empresa em 8 de maio.
B21: Contas a receber | C21: R$ 20,000.00 | D21: R$ 22,000.00 | E21: -R$ 2,000.00 | F21: R$ 20,000.00 | G21: R$ 22,000.00 | H21: -R$ 2,000.00
B22: Inventário | C22: R$ 25,000.00 | D22: R$ 30,000.00 | E22: -R$ 5,000.00 | F22: R$ 25,000.00 | G22: R$ 30,000.00 | H22: -R$ 5,000.00
B23: Totais ativos líquidos | C23: R$ 75,000.00 | D23: R$ 90,000.00 | E23: -R$ 15,000.00 | F23: R$ 75,000.00 | G23: R$ 90,000.00 | H23: -R$ 15,000.00
B24: Ativos exigidos pela dívida convencional | C24: R$ 25,000.00 | D24: R$ 25,000.00 | E24: R$ 0.00 | F24: R$ 25,000.00 | G24: R$ 25,000.00 | H24: R$ 0.00
B25: Buffer da dívida convencional | C25: =C23-C24 -> R$ 50,000.00 | D25: =D23-D24 -> R$ 65,000.00 | E25: -R$ 15,000.00 | F25: =F23-F24 -> R$ 50,000.00 | G25: =G23-G24 -> R$ 65,000.00 | H25: -R$ 15,000.00
B26: Outros itens do balanço:
B27: Propriedades, local e equipamento | C27: R$ 80,000.00 | D27: R$ 78,000.00 | E27: =C27-D27 -> R$ 2,000.00 | F27: R$ 80,000.00 | G27: R$ 78,000.00 | H27: =F27-G27 -> R$ 2,000.00 | I27: Diferencial devido à compra de nova máquina de intermitência na planta B.
B28: Contas a pagar | C28: R$ 60,000.00 | D28: R$ 60,000.00 | E28: =D28-C28 -> R$ 0.00 | F28: R$ 60,000.00 | G28: R$ 60,000.00 | H28: =F28-G28 -> R$ 0.00
B29: Passivos a longo prazo | C29: R$ 30,000.00 | D29: R$ 31,000.00 | E29: =D29-C29 -> R$ 1,000.00 | F29: R$ 30,000.00 | G29: R$ 31,000.00 | H29: =G29-F29 -> R$ 1,000.00
B30: Capital próprio do acionista | C30: R$ 300,000.00 | D30: R$ 297,500.00 | E30: =C30-D30 -> R$ 2,500.00 | F30: R$ 300,000.00 | G30: R$ 297,500.00 | H30: =F30-G30 -> R$ 2,500.00
B32: Resumo de métricas operacionais | C32: Maio real | D32: Metas de maio | E32: Variação mensal | F32: No ano reais | G32: Metas anuais | H32: Variação anual | I32: Anotações
B33: Número de defeitos por 1.000 widgets produzido | C33: 2.3 | D33: 1.0 | E33: =D33-C33 -> -1.3 | F33: 1.5 | G33: 1.0 | H33: =F33-G33 -> 0.5 | I33: Os problemas de qualidade foram da tinta incorreta aplicada na linha de produção 3; o gerente implementou novos controles de detetive.
B34: Capacidade de produção, unidades por mês | C34: 200,000 | D34: 220,000 | E34: =C34-D34 -> -20,000 | F34: 1,100,000 | G34: 1,150,000 | H34: =F34-G34 -> -50,000
B35: Dias de vendas pendentes | C35: 35 | D35: 25 | E35: =D35-C35 -> -10 | F35: 33 | G35: 25 | H35: =G35-F35 -> -8
B36: Número de pedidos novos | C36: 19 | D36: 15 | E36: =C36-D36 -> 4 | F36: 83 | G36: 75 | H36: =F36-G36 -> 8
B38: Resumo competitivo | C38: Seu perfil de empresa | D38: Concorrente 1 | E38: Concorrente 2 | F38: Concorrente 3 | G38: Concorrente 4 | H38: Outros | I38: Anotações
B39: Participação de mercado | C39: 20.00% | D39: 25.00% | E39: 15.00% | F39: 5.00% | G39: 15.00% | H39: 20.00% | I39: Participação de mercado aumentou devido a força das vendas de produtos novos.
B40: Receita (no ano) | C40: =F6 -> R$ 6,200,000.00 | D40: R$ 7,000,000.00 | E40: R$ 4,000,000.00 | F40: R$ 1,500,000.00 | G40: R$ 4,000,000.00 | H40: R$ 6,000,000.00
B41: Introdução de novos produtos (no ano) | C41: R$ 900,000.00 | D41: R$ 500,000.00 | E41: R$ 0.00 | F41: R$ 100,000.00 | G41: R$ 500,000.00 | H41: R$ 0.00
B42: Número de vendedores de campo (estimado) | C42: 15 | D42: 20 | E42: 15 | F42: 10 | G42: 15 | H42: N/D

Sheet GRÁFICO DE LUCROS E PERDAS
B2: GRÁFICO DE RESUMO DE LUCROS E PERDAS | I2: ='RESUMO DO ORÇAMENTO'!I2 -> 2019
B3: ='RESUMO DO ORÇAMENTO'!B3 -> Nome da empresa
B5: Gráfico de barras mostrando os resultados e as metas do mês e do ano está nesta célula.

Sheet GRÁFICO DO BALANÇO
B2: GRÁFICO DE RESUMO DO BALANÇO | I2: ='RESUMO DO ORÇAMENTO'!I2 -> 2019
B3: ='RESUMO DO ORÇAMENTO'!B3 -> Nome da empresa
B5: Gráfico de barras mostrando os resultados e as metas mensais nesta célula.
